fUST/lending_fUST_20240726
["ID","MTS","AMOUNT","RATE_DAILY","PERIOD"]
[333247741,1721976660359,-500.0,0.0001452,2]
[333247742,1721976660371,-943.8,0.0001452,2]
[333247743,1721976660382,-500.0,0.0001452,2]
[333247744,1721976660392,-1109.89,0.0001452,2]
[333247745,1721976660402,-6081.05,0.0001452,2]
[333247746,1721976660412,-500.0,0.0001452,2]
[333247747,1721976660422,-500.0,0.0001452,2]
[333247748,1721976660432,-568.63,0.0001452,2]
[333247749,1721976660442,-669.58,0.0001452,2]
[333247750,1721976660452,-2701.76,0.0001452,2]
[333247751,1721976660462,-772.0,0.0001452,2]
[333247752,1721976660472,-500.0,0.0001452,2]
[333247753,1721976660483,-500.0,0.0001452,2]
[333247754,1721976660494,-500.0,0.0001452,2]
[333247755,1721976660505,-500.0,0.0001452,2]
[333247756,1721976660515,-3688.09,0.0001452,2]
[333247757,1721976660526,-1048.03,0.0001452,2]
[333247758,1721976660537,-600.48,0.0001452,2]
[333247759,1721976660549,-500.0,0.0001452,2]
[333247760,1721976660561,-500.0,0.0001452,2]
[333247761,1721976660573,-666.21,0.0001452,2]
[333247762,1721976660586,-1022.41,0.0001452,2]
[333247763,1721976660596,-192.62994465,0.0001452,2]
[333247764,1721976660607,-952.2,0.0001452,2]
[333247765,1721976660619,-500.0,0.0001452,2]
[333247766,1721976660630,-1225.02,0.0001452,2]
[333247767,1721976660644,-500.0,0.0001452,2]
[333247768,1721976660655,-1226.57,0.0001452,2]
[333247769,1721976660669,-500.0,0.0001452,2]
[333247770,1721976660678,-1324.8,0.0001452,2]
[333247771,1721976660689,-500.0,0.0001452,2]
[333247772,1721976660699,-984.56,0.0001452,2]
[333247773,1721976660712,-1063.4,0.0001452,2]
[333247774,1721976660722,-1993.05,0.0001452,2]
[333247775,1721976660734,-500.0,0.0001452,2]
[333247776,1721976660745,-500.0,0.0001452,2]
[333247777,1721976660755,-500.0,0.0001452,2]
[333247778,1721976660765,-1145.89,0.0001452,2]
[333247779,1721976660775,-634.64808383,0.0001452,2]
[333247780,1721976660785,-500.0,0.0001452,2]
[333247781,1721976660795,-998.91,0.0001452,2]
[333247782,1721976660805,-879.72,0.0001452,2]
[333247783,1721976660816,-508.02940413,0.0001452,2]
[333247784,1721976660825,-500.0,0.0001452,2]
[333247785,1721976660837,-500.0,0.0001452,2]
[333247786,1721976660846,-674.67,0.0001452,2]
[333247787,1721976660857,-500.0,0.0001452,2]
[333247788,1721976660868,-601.03,0.0001452,2]
[333247789,1721976660879,-500.0,0.0001452,2]
[333247790,1721976660890,-674.9,0.0001452,2]
[333247791,1721976660900,-2781.03,0.0001452,2]
[333247792,1721976660910,-500.0,0.0001452,2]
[333247793,1721976660920,-500.0,0.0001452,2]
[333247794,1721976660929,-500.0,0.0001452,2]
[333247795,1721976660939,-500.0,0.0001452,2]
[333247796,1721976660949,-500.0,0.0001452,2]
[333247797,1721976660959,-1427.25,0.0001452,2]
[333247798,1721976660969,-507.66272438,0.0001452,2]
[333247799,1721976660981,-651.32,0.0001452,2]
[333247800,1721976660991,-1020.09,0.0001452,2]
[333247801,1721976661000,-853.61,0.0001452,2]
[333247802,1721976661010,-1340.71,0.0001452,2]
[333247803,1721976661020,-500.0,0.0001452,2]
[333247804,1721976661030,-500.0,0.0001452,2]
[333247805,1721976661039,-500.0,0.0001452,2]
[333247806,1721976661049,-500.0,0.0001452,2]
[333247807,1721976661059,-1453.44,0.0001452,2]
[333247808,1721976661070,-624.41,0.0001452,2]
[333247809,1721976661080,-500.0,0.0001452,2]
[333247810,1721976661090,-643.73,0.0001452,2]
[333247811,1721976661101,-1142.59,0.0001452,2]
[333247812,1721976661113,-819.81,0.0001452,2]
[333247813,1721976661126,-500.0,0.0001452,2]
[333247814,1721976661139,-470.01058235,0.0001452,2]
[333247815,1721976661150,-1148.37,0.0001452,2]
[333247816,1721976661162,-2059.33,0.0001452,2]
[333247817,1721976661172,-500.0,0.0001452,2]
[333247818,1721976661181,-1073.38,0.0001452,2]
[333247819,1721976661191,-1839.54,0.0001452,2]
[333247820,1721976661201,-846.13,0.0001452,2]
[333247821,1721976661211,-500.0,0.0001452,2]
[333247822,1721976661220,-500.0,0.0001452,2]
[333247823,1721976661230,-1443.58,0.0001452,2]
[333247824,1721976661239,-500.0,0.0001452,2]
[333247825,1721976661250,-500.0,0.0001452,2]
[333247826,1721976661259,-500.0,0.0001452,2]
[333247827,1721976661269,-500.0,0.0001452,2]
[333247828,1721976661279,-500.0,0.0001452,2]
[333247829,1721976661288,-500.0,0.0001452,2]
[333247830,1721976661298,-500.0,0.0001452,2]
[333247831,1721976661308,-559.33,0.0001452,2]
[333247832,1721976661317,-500.0,0.0001452,2]
[333247833,1721976661327,-339.54,0.0001452,2]
[333247834,1721976661336,-500.0,0.0001452,2]
[333247835,1721976661346,-500.0,0.0001452,2]
[333247836,1721976661356,-493.05,0.0001452,2]
[333247837,1721976661365,-500.0,0.0001452,2]
[333247838,1721976661375,-500.0,0.0001452,2]
[333247839,1721976661386,-500.0,0.0001452,2]
[333247840,1721976661395,-500.0,0.0001452,2]
[333247841,1721976661405,-500.0,0.0001452,2]
[333247842,1721976661415,-287.1,0.0001452,2]
[333247843,1721976661425,-969.77654737,0.0001452,2]
[333247844,1721976661435,-226.809146,0.00014527,2]
[333247845,1721976661445,-184.650394,0.00014527,2]
[333247846,1721976661455,-163.907305,0.00014615,2]
[333247847,1721976661464,-1011.33249818,0.0001469,2]
[333247848,1721976661474,-3435.80759439,0.0001469,2]
[333247849,1721976661484,-2735.25850497,0.0001469,2]
[333247850,1721976661493,-154.77557542,0.0001469,2]
[333247851,1721976661503,-1565.60936096,0.0001469,2]
[333247852,1721976661514,-1179.40744736,0.0001469,2]
[333247853,1721976661523,-244.80287564,0.0001469,2]
[333247854,1721976661533,-397.59157942,0.0001469,2]
[333247855,1721976661543,-156.47242,0.00014707,2]
[333247856,1721976661552,-179.580164,0.00014707,2]
[333247857,1721976661563,-226.809146,0.00014707,2]
[333247858,1721976661573,-184.650394,0.00014707,2]
[333247859,1721976661584,-157.640075,0.00014734,2]
[333247860,1721976661594,-175.523729,0.00014734,2]
[333247861,1721976661605,-5010.94345169,0.00014792,2]
[333247862,1721976661616,-125876.81261,0.00014793,2]
[333247863,1721976661628,-163.907305,0.00014794,2]
[333247864,1721976661639,-538.14,0.00014794,2]
[333247865,1721976661648,-500.0,0.00014794,2]
[333247866,1721976661658,-500.0,0.00014794,2]
[333247867,1721976661668,-500.0,0.00014794,2]
[333247868,1721976661679,-505.71279425,0.00014794,2]
[333247869,1721976661689,-1058.69,0.00014794,2]
[333247870,1721976661700,-500.0,0.00014794,2]
[333247871,1721976661710,-500.0,0.00014794,2]
[333247872,1721976661720,-500.0,0.00014794,2]
[333247873,1721976661730,-500.0,0.00014794,2]
[333247874,1721976661742,-500.0,0.00014794,2]
[333247875,1721976661754,-578.68,0.00014794,2]
[333247876,1721976661764,-500.0,0.00014794,2]
[333247877,1721976661773,-191.68299004,0.00014794,2]
[333247878,1721976661783,-500.0,0.00014794,2]
[333247879,1721976661795,-500.0,0.00014794,2]
[333247880,1721976661805,-500.0,0.00014794,2]
[333247881,1721976661816,-500.0,0.00014794,2]
[333247882,1721976661827,-500.0,0.00014794,2]
[333247883,1721976661837,-799.98,0.00014794,2]
[333247884,1721976661847,-1245.42,0.00014794,2]
[333247885,1721976661856,-500.0,0.00014794,2]
[333247886,1721976661866,-500.0,0.00014794,2]
[333247887,1721976661876,-685.7,0.00014794,2]
[333247888,1721976661887,-513.2,0.00014794,2]
[333247889,1721976661897,-475.05915055,0.00014794,2]
[333247890,1721976661907,-500.0,0.00014794,2]
[333247891,1721976661916,-500.0,0.00014794,2]
[333247892,1721976661926,-500.0,0.00014794,2]
[333247893,1721976661936,-500.0,0.00014794,2]
[333247894,1721976661946,-693.06,0.00014794,2]
[333247895,1721976661956,-791.19,0.00014794,2]
[333247896,1721976661966,-500.0,0.00014794,2]
[333247897,1721976661976,-500.0,0.00014794,2]
[333247898,1721976661986,-500.0,0.00014794,2]
[333247899,1721976662038,-365.25620267,0.00014794,2]
[333247900,1721976662049,-574.9,0.00014794,2]
[333247901,1721976662059,-195.27213819,0.00014794,2]
[333247902,1721976662068,-500.0,0.00014794,2]
[333247903,1721976662077,-500.0,0.00014794,2]
[333247904,1721976662087,-500.0,0.00014794,2]
[333247905,1721976662097,-502.34,0.00014794,2]
[333247906,1721976662106,-639.26,0.00014794,2]
[333247907,1721976662116,-500.0,0.00014794,2]
[333247908,1721976662126,-500.0,0.00014794,2]
[333247909,1721976662137,-677.3,0.00014794,2]
[333247910,1721976662147,-221.2636105,0.00014794,2]
[333247911,1721976662157,-500.0,0.00014794,2]
[333247912,1721976662168,-500.0,0.00014794,2]
[333247913,1721976662178,-1787.1,0.00014794,2]
[333247914,1721976662188,-548.24,0.00014794,2]
[333247915,1721976662197,-500.0,0.00014794,2]
[333247916,1721976662207,-500.0,0.00014794,2]
[333247917,1721976662217,-500.0,0.00014794,2]
[333247918,1721976662226,-1115.44,0.00014794,2]
[333247919,1721976662235,-500.0,0.00014794,2]
[333247920,1721976662244,-1171.1,0.00014794,2]
[333247921,1721976662254,-500.0,0.00014794,2]
[333247922,1721976662263,-500.0,0.00014794,2]
[333247923,1721976662272,-500.0,0.00014794,2]
[333247924,1721976662282,-500.0,0.00014794,2]
[333247925,1721976662293,-500.0,0.00014794,2]
[333247926,1721976662303,-500.0,0.00014794,2]
[333247927,1721976662312,-500.0,0.00014794,2]
[333247928,1721976662321,-500.0,0.00014794,2]
[333247929,1721976662331,-500.0,0.00014794,2]
[333247930,1721976662340,-500.0,0.00014794,2]
[333247931,1721976662350,-1102.4,0.00014794,2]
[333247932,1721976662359,-500.0,0.00014794,2]
[333247933,1721976662368,-628.44173615,0.00014794,2]
[333247934,1721976662382,-500.0,0.00014794,2]
[333247935,1721976662391,-500.0,0.00014794,2]
[333247936,1721976662400,-1067.62,0.00014794,2]
[333247937,1721976662411,-559.32,0.00014794,2]
[333247938,1721976662422,-5934.86,0.00014794,2]
[333247939,1721976662432,-500.0,0.00014794,2]
[333247940,1721976662444,-984.04,0.00014794,2]
[333247941,1721976662454,-500.0,0.00014794,2]
[333247942,1721976662466,-500.0,0.00014794,2]
[333247943,1721976662476,-913.44,0.00014794,2]
[333247944,1721976662486,-500.0,0.00014794,2]
[333247945,1721976662498,-660.95,0.00014794,2]
[333247946,1721976662509,-500.0,0.00014794,2]
[333247947,1721976662521,-7223.94,0.00014794,2]
[333247948,1721976662532,-1135.64,0.00014794,2]
[333247949,1721976662543,-506.10775999,0.00014794,2]
[333247950,1721976662553,-500.0,0.00014794,2]
[333247951,1721976662563,-545.37,0.00014794,2]
[333247952,1721976662575,-720.7,0.00014794,2]
[333247953,1721976662587,-1030.3,0.00014794,2]
[333247954,1721976662598,-677.8,0.00014794,2]
[333247955,1721976662608,-3228.97,0.00014794,2]
[333247956,1721976662619,-500.0,0.00014794,2]
[333247957,1721976662632,-678.46,0.00014794,2]
[333247958,1721976662645,-500.0,0.00014794,2]
[333247959,1721976662656,-500.0,0.00014794,2]
[333247960,1721976662666,-1078.13,0.00014794,2]
[333247961,1721976662676,-500.0,0.00014794,2]
[333247962,1721976662686,-762.78,0.00014794,2]
[333247963,1721976662697,-1598.94,0.00014794,2]
[333247964,1721976662707,-500.0,0.00014794,2]
[333247965,1721976662717,-3140.86,0.00014794,2]
[333247966,1721976662730,-500.0,0.00014794,2]
[333247967,1721976662741,-695.8,0.00014794,2]
[333247968,1721976662753,-500.0,0.00014794,2]
[333247969,1721976662763,-871.65,0.00014794,2]
[333247970,1721976662775,-1286.52,0.00014794,2]
[333247971,1721976662785,-633.13,0.00014794,2]
[333247972,1721976662795,-860.96,0.00014794,2]
[333247973,1721976662806,-971.16,0.00014794,2]
[333247974,1721976662817,-500.0,0.00014794,2]
[333247975,1721976662829,-943.8,0.00014794,2]
[333247976,1721976662839,-500.0,0.00014794,2]
[333247977,1721976662849,-1109.89,0.00014794,2]
[333247978,1721976662858,-6081.05,0.00014794,2]
[333247979,1721976662869,-500.0,0.00014794,2]
[333247980,1721976662878,-500.0,0.00014794,2]
[333247981,1721976662892,-568.63,0.00014794,2]
[333247982,1721976662902,-669.58,0.00014794,2]
[333247983,1721976662912,-2701.76,0.00014794,2]
[333247984,1721976662921,-772.0,0.00014794,2]
[333247985,1721976662930,-500.0,0.00014794,2]
[333247986,1721976662939,-500.0,0.00014794,2]
[333247987,1721976662950,-500.0,0.00014794,2]
[333247988,1721976662960,-3688.09,0.00014794,2]
[333247989,1721976662971,-1048.03,0.00014794,2]
[333247990,1721976662983,-600.48,0.00014794,2]
[333247991,1721976662993,-500.0,0.00014794,2]
[333247992,1721976663004,-666.21,0.00014794,2]
[333247993,1721976663014,-1022.41,0.00014794,2]
[333247994,1721976663024,-952.2,0.00014794,2]
[333247995,1721976663036,-500.0,0.00014794,2]
[333247996,1721976663045,-1225.02,0.00014794,2]
[333247997,1721976663059,-500.0,0.00014794,2]
[333247998,1721976663071,-1226.57,0.00014794,2]
[333247999,1721976663080,-500.0,0.00014794,2]
[333248000,1721976663091,-1324.8,0.00014794,2]
[333248001,1721976663101,-500.0,0.00014794,2]
[333248002,1721976663111,-984.56,0.00014794,2]
[333248003,1721976663122,-1063.4,0.00014794,2]
[333248004,1721976663134,-1993.05,0.00014794,2]
[333248005,1721976663144,-500.0,0.00014794,2]
[333248006,1721976663155,-235.69782262,0.00014794,2]
[333248007,1721976663166,-500.0,0.00014794,2]
[333248008,1721976663177,-1145.89,0.00014794,2]
[333248009,1721976663187,-500.0,0.00014794,2]
[333248010,1721976663198,-998.91,0.00014794,2]
[333248011,1721976663208,-879.72,0.00014794,2]
[333248012,1721976663220,-500.0,0.00014794,2]
[333248013,1721976663231,-500.0,0.00014794,2]
[333248014,1721976663243,-674.67,0.00014794,2]
[333248015,1721976663254,-601.03,0.00014794,2]
[333248016,1721976663265,-500.0,0.00014794,2]
[333248017,1721976663275,-674.9,0.00014794,2]
[333248018,1721976663286,-2781.03,0.00014794,2]
[333248019,1721976663297,-506.22402931,0.00014794,2]
[333248020,1721976663308,-500.0,0.00014794,2]
[333248021,1721976663318,-500.0,0.00014794,2]
[333248022,1721976663328,-514.76731381,0.00014794,2]
[333248023,1721976663339,-1427.25,0.00014794,2]
[333248024,1721976663349,-651.32,0.00014794,2]
[333248025,1721976663360,-650.04983941,0.00014794,2]
[333248026,1721976663385,-370.04016059,0.00014794,2]
[333248027,1721976663395,-853.61,0.00014794,2]
[333248028,1721976663405,-1126.78637908,0.00014794,2]
[333248029,1721976663438,-359.8822361,0.00013527,2]
[333248030,1721976663448,-261.3543789,0.00014,2]
[333248031,1721976663457,-213.92362092,0.00014794,2]
[333248032,1721976663467,-500.0,0.00014794,2]
[333248033,1721976663476,-500.0,0.00014794,2]
[333248034,1721976663485,-500.0,0.00014794,2]
[333248035,1721976663494,-500.0,0.00014794,2]
[333248036,1721976663504,-1453.44,0.00014794,2]
[333248037,1721976663514,-624.41,0.00014794,2]
[333248038,1721976663524,-500.0,0.00014794,2]
[333248039,1721976663535,-643.73,0.00014794,2]
[333248040,1721976663545,-529.85976408,0.00014794,2]
[333248041,1721976663559,-612.73023592,0.00014794,2]
[333248042,1721976663569,-819.81,0.00014794,2]
[333248043,1721976663579,-500.0,0.00014794,2]
[333248044,1721976663591,-1148.37,0.00014794,2]
[333248045,1721976663602,-2059.33,0.00014794,2]
[333248046,1721976663612,-500.0,0.00014794,2]
[333248047,1721976663623,-1073.38,0.00014794,2]
[333248048,1721976663634,-1839.54,0.00014794,2]
[333248049,1721976663644,-846.13,0.00014794,2]
[333248050,1721976663655,-500.0,0.00014794,2]
[333248051,1721976663665,-16.20976408,0.00014794,2]
[333248052,1721976663696,-5196.87536344,0.00013671,2]
[333248053,1721976663707,-483.79023592,0.00014794,2]
[333248054,1721976663717,-1017.33440066,0.00014794,2]
[333248055,1721976663730,-426.24559934,0.00014794,2]
[333248056,1721976663740,-399.42227963,0.00014794,2]
[333248057,1721976663752,-500.0,0.00014794,2]
[333248058,1721976663764,-500.0,0.00014794,2]
[333248059,1721976663775,-500.0,0.00014794,2]
[333248060,1721976663785,-500.0,0.00014794,2]
[333248061,1721976663796,-500.0,0.00014794,2]
[333248062,1721976663806,-500.0,0.00014794,2]
[333248063,1721976663817,-500.0,0.00014794,2]
[333248064,1721976663827,-500.0,0.00014794,2]
[333248065,1721976663837,-500.0,0.00014794,2]
[333248066,1721976663848,-500.0,0.00014794,2]
[333248067,1721976663859,-500.0,0.00014794,2]
[333248068,1721976663869,-500.0,0.00014794,2]
[333248069,1721976663879,-500.0,0.00014794,2]
[333248070,1721976663894,-500.0,0.00014794,2]
[333248071,1721976663903,-1371.68991703,0.00014837,2]
[333248072,1721976663914,-414.0,0.00014838,2]
[333248073,1721976663928,-226.809146,0.00014886,2]
[333248074,1721976663938,-184.650394,0.00014886,2]
[333248075,1721976663948,-419.08628446,0.000149,2]
[333248076,1721976663957,-419.08628444,0.000149,2]
[333248077,1721976663967,-419.08628444,0.000149,2]
[333248078,1721976663980,-545.92354066,0.000149,31]
[333248085,1721977609497,500.0,0.00025,120]
[333248231,1721977842506,-200.0,9.97e-05,2]
[333248232,1721977842516,-404.21044793,0.0001134,2]
[333248233,1721977842526,-200.0,0.00013425,2]
[333248234,1721977842536,-110815.145511,0.00013688,2]
[333248235,1721977842547,-187.13585754,0.00013698,2]
[333248236,1721977842557,-500.0,0.00013698,2]
[333248237,1721977842567,-500.0,0.00013698,2]
[333248238,1721977842579,-238.607116,0.00013698,2]
[333248239,1721977842589,-238.607116,0.00013698,2]
[333248240,1721977842598,-238.607116,0.00013698,2]
[333248241,1721977842611,-238.607116,0.00013698,2]
[333248242,1721977842620,-238.607116,0.00013698,2]
[333248243,1721977842630,-238.607116,0.00013698,2]
[333248244,1721977842640,-238.607116,0.00013698,2]
[333248245,1721977842652,-238.607116,0.00013698,2]
[333248246,1721977842662,-238.607116,0.00013698,2]
[333248247,1721977842673,-238.607116,0.00013698,2]
[333248248,1721977842684,-238.607116,0.00013698,2]
[333248249,1721977842694,-238.607116,0.00013698,2]
[333248250,1721977842704,-238.607116,0.00013698,2]
[333248251,1721977842717,-238.607116,0.00013698,2]
[333248252,1721977842726,-238.607116,0.00013698,2]
[333248253,1721977842736,-238.607116,0.00013698,2]
[333248254,1721977842746,-500.0,0.00013698,2]
[333248255,1721977842756,-639.26,0.00013698,2]
[333248256,1721977842766,-500.0,0.00013698,2]
[333248257,1721977842776,-206.47478018,0.00013698,2]
[333248300,1721977843752,-293.52521982,0.00013698,2]
[333248301,1721977843762,-500.0,0.00013698,2]
[333248302,1721977843772,-500.0,0.00013698,2]
[333248303,1721977843781,-500.0,0.00013698,2]
[333248304,1721977843791,-500.0,0.00013698,2]
[333248305,1721977843800,-500.0,0.00013698,2]
[333248306,1721977843812,-500.0,0.00013698,2]
[333248307,1721977843821,-500.0,0.00013698,2]
[333248308,1721977843832,-500.0,0.00013698,2]
[333248309,1721977843842,-500.0,0.00013698,2]
[333248310,1721977843852,-500.0,0.00013698,2]
[333248311,1721977843861,-500.0,0.00013698,2]
[333248313,1721977843870,-555.82786213,0.00013698,2]
[333248315,1721977843880,-500.0,0.00013698,2]
[333248317,1721977843891,-500.0,0.00013698,2]
[333248320,1721977843902,-500.0,0.00013698,2]
[333248321,1721977843913,-500.0,0.00013698,2]
[333248322,1721977843925,-500.0,0.00013698,2]
[333248323,1721977843936,-601.03,0.00013698,2]
[333248324,1721977843946,-500.0,0.00013698,2]
[333248325,1721977843957,-500.0,0.00013698,2]
[333248326,1721977843967,-500.0,0.00013698,2]
[333248327,1721977843979,-500.0,0.00013698,2]
[333248328,1721977843989,-500.0,0.00013698,2]
[333248329,1721977844001,-397.7762519,0.00013698,2]
[333248330,1721977844012,-506.22402931,0.00013698,2]
[333248331,1721977844023,-500.0,0.00013698,2]
[333248332,1721977844034,-500.0,0.00013698,2]
[333248333,1721977844045,-514.76731381,0.00013698,2]
[333248334,1721977844058,-508.47711334,0.00013698,2]
[333248335,1721977844069,-500.0,0.00013698,2]
[333248336,1721977844079,-500.0,0.00013698,2]
[333248337,1721977844090,-500.0,0.00013698,2]
[333248338,1721977844102,-514.83220706,0.00013698,2]
[333248339,1721977844115,-500.0,0.00013698,2]
[333248340,1721977844125,-500.0,0.00013698,2]
[333248341,1721977844135,-500.0,0.00013698,2]
[333248342,1721977844145,-500.0,0.00013698,2]
[333248343,1721977844156,-500.0,0.00013698,2]
[333248344,1721977844166,-500.0,0.00013698,2]
[333248345,1721977844176,-500.0,0.00013698,2]
[333248346,1721977844185,-500.0,0.00013698,2]
[333248347,1721977844195,-500.0,0.00013698,2]
[333248348,1721977844209,-500.0,0.00013698,2]
[333248349,1721977844219,-500.0,0.00013698,2]
[333248350,1721977844241,-240.14028747,0.00013698,2]
[333248351,1721977844254,-500.0,0.00013698,2]
[333248352,1721977844266,-500.0,0.00013698,2]
[333248353,1721977844278,-500.0,0.00013698,2]
[333248354,1721977844288,-500.0,0.00013698,2]
[333248355,1721977844298,-500.0,0.00013698,2]
[333248356,1721977844310,-500.0,0.00013698,2]
[333248357,1721977844320,-500.0,0.00013698,2]
[333248358,1721977844332,-500.0,0.00013698,2]
[333248359,1721977844344,-500.0,0.00013698,2]
[333248360,1721977844356,-500.0,0.00013698,2]
[333248361,1721977844366,-235.69782262,0.00013698,2]
[333248362,1721977844377,-502.34,0.00013698,2]
[333248363,1721977844387,-500.0,0.00013698,2]
[333248364,1721977844398,-500.0,0.00013698,2]
[333248365,1721977844410,-500.0,0.00013698,2]
[333248366,1721977844422,-500.0,0.00013698,2]
[333248367,1721977844434,-548.24,0.00013698,2]
[333248368,1721977844445,-500.0,0.00013698,2]
[333248369,1721977844456,-500.0,0.00013698,2]
[333248370,1721977844467,-633.13,0.00013698,2]
[333248371,1721977844479,-500.0,0.00013698,2]
[333248372,1721977844489,-500.0,0.00013698,2]
[333248373,1721977844499,-500.0,0.00013698,2]
[333248374,1721977844511,-500.0,0.00013698,2]
[333248375,1721977844523,-500.0,0.00013698,2]
[333248376,1721977844534,-500.0,0.00013698,2]
[333248377,1721977844545,-500.0,0.00013698,2]
[333248378,1721977844556,-500.0,0.00013698,2]
[333248379,1721977844566,-500.0,0.00013698,2]
[333248380,1721977844578,-500.0,0.00013698,2]
[333248381,1721977844590,-500.0,0.00013698,2]
[333248382,1721977844601,-500.0,0.00013698,2]
[333248383,1721977844611,-500.0,0.00013698,2]
[333248384,1721977844620,-500.0,0.00013698,2]
[333248385,1721977844630,-500.0,0.00013698,2]
[333248386,1721977844639,-500.0,0.00013698,2]
[333248387,1721977844649,-507.51573713,0.00013698,2]
[333248388,1721977844658,-500.0,0.00013698,2]
[333248389,1721977844668,-500.0,0.00013698,2]
[333248390,1721977844677,-500.0,0.00013698,2]
[333248391,1721977844686,-500.0,0.00013698,2]
[333248392,1721977844696,-500.0,0.00013698,2]
[333248393,1721977844706,-500.0,0.00013698,2]
[333248394,1721977844715,-500.0,0.00013698,2]
[333248395,1721977844725,-600.48,0.00013698,2]
[333248396,1721977844735,-500.0,0.00013698,2]
[333248397,1721977844745,-500.0,0.00013698,2]
[333248398,1721977844755,-500.0,0.00013698,2]
[333248399,1721977844765,-500.0,0.00013698,2]
[333248400,1721977844775,-500.0,0.00013698,2]
[333248401,1721977844784,-500.0,0.00013698,2]
[333248402,1721977844794,-500.0,0.00013698,2]
[333248403,1721977844804,-500.0,0.00013698,2]
[333248404,1721977844813,-500.0,0.00013698,2]
[333248405,1721977844823,-500.0,0.00013698,2]
[333248406,1721977844834,-500.0,0.00013698,2]
[333248407,1721977844844,-319.72917475,0.00013698,2]
[333248408,1721977844854,-500.0,0.00013698,2]
[333248409,1721977844864,-500.0,0.00013698,2]
[333248410,1721977844873,-500.0,0.00013698,2]
[333248411,1721977844882,-545.37,0.00013698,2]
[333248412,1721977844892,-500.0,0.00013698,2]
[333248413,1721977844901,-500.0,0.00013698,2]
[333248414,1721977844911,-510.88043451,0.00013698,2]
[333248415,1721977844920,-500.0,0.00013698,2]
[333248416,1721977845155,-500.0,0.00013698,2]
[333248417,1721977845165,-500.0,0.00013698,2]
[333248418,1721977845174,-500.0,0.00013698,2]
[333248419,1721977845184,-500.0,0.00013698,2]
[333248420,1721977845194,-500.0,0.00013698,2]
[333248421,1721977845203,-500.0,0.00013698,2]
[333248422,1721977845214,-500.0,0.00013698,2]
[333248423,1721977845223,-506.10775999,0.00013698,2]
[333248424,1721977845234,-500.0,0.00013698,2]
[333248425,1721977845245,-500.0,0.00013698,2]
[333248426,1721977845256,-500.0,0.00013698,2]
[333248427,1721977845266,-500.0,0.00013698,2]
[333248428,1721977845278,-500.0,0.00013698,2]
[333248429,1721977845288,-500.0,0.00013698,2]
[333248430,1721977845298,-500.0,0.00013698,2]
[333248431,1721977845308,-500.0,0.00013698,2]
[333248432,1721977845318,-175.903164,0.00013698,2]
[333248433,1721977845341,-324.096836,0.00013698,2]
[333248434,1721977845354,-500.0,0.00013698,2]
[333248435,1721977845363,-500.0,0.00013698,2]
[333248436,1721977845373,-500.0,0.00013698,2]
[333248437,1721977845383,-500.0,0.00013698,2]
[333248438,1721977845394,-500.0,0.00013698,2]